[Event "Titled Tuesday Blitz November 08 Early 2022"]
[White "Bacrot, Etienne"]
[Black "Howell, David W L"]
[WhiteFideId "605506"]
[BlackFideId "410608"]
[WhiteElo "2666"]
[BlackElo "2567"]
[Result "1/2-1/2"]
[Round "09"]
[TimeControl "180+1"]
[Date "2022.11.08"]
[WhiteClock "0:00:05"]
[BlackClock "0:00:04"]

1. e4 {[%clk 0:03:00]}  c6 {[%clk 0:02:51]} 2. Nf3 {[%clk 0:03:00]}  d5 {[%clk 0:02:52]} 3. Nc3 {[%clk 0:03:00]}  Qa5 {[%clk 0:02:52]} 4. Be2 {[%clk 0:02:59]}  dxe4 {[%clk 0:02:51]} 5. Nxe4 {[%clk 0:02:58]}  Bf5 {[%clk 0:02:51]} 6. Ng3 {[%clk 0:02:58]}  Bg6 {[%clk 0:02:52]} 7. O-O {[%clk 0:02:58]}  e6 {[%clk 0:02:52]} 8. d4 {[%clk 0:02:58]}  Nd7 {[%clk 0:02:52]} 9. Bd2 {[%clk 0:02:57]}  Qc7 {[%clk 0:02:51]} 10. Re1 {[%clk 0:02:55]}  Ngf6 {[%clk 0:02:50]} 11. Nh4 {[%clk 0:02:55]}  Bd6 {[%clk 0:02:47]} 12. Bf3 {[%clk 0:02:48]}  O-O {[%clk 0:02:43]} 13. Nxg6 {[%clk 0:02:47]}  hxg6 {[%clk 0:02:43]} 14. c3 {[%clk 0:02:46]}  Rad8 {[%clk 0:02:42]} 15. Qb3 {[%clk 0:02:46]}  Rfe8 {[%clk 0:02:39]} 16. Ne4 {[%clk 0:02:45]}  Bxh2+ {[%clk 0:02:36]} 17. Kf1 {[%clk 0:02:45]}  Nxe4 {[%clk 0:02:27]} 18. Rxe4 {[%clk 0:02:45]}  Bd6 {[%clk 0:02:24]} 19. g3 {[%clk 0:02:45]}  Be7 {[%clk 0:01:51]} 20. Kg2 {[%clk 0:02:45]}  Nf8 {[%clk 0:01:42]} 21. Rh1 {[%clk 0:02:43]}  c5 {[%clk 0:01:34]} 22. Bf4 {[%clk 0:02:37]}  Qb6 {[%clk 0:01:29]} 23. Qxb6 {[%clk 0:02:15]}  axb6 {[%clk 0:01:30]} 24. Bc7 {[%clk 0:02:15]}  Ra8 {[%clk 0:01:21]} 25. Bxb6 {[%clk 0:02:14]}  Rxa2 {[%clk 0:01:02]} 26. dxc5 {[%clk 0:02:13]}  Nd7 {[%clk 0:00:56]} 27. Rb4 {[%clk 0:01:41]}  Bxc5 {[%clk 0:00:34]} 28. Bxc5 {[%clk 0:01:40]}  Nxc5 {[%clk 0:00:35]} 29. Bxb7 {[%clk 0:00:31]}  Nd3 {[%clk 0:00:21]} 30. Rd4 {[%clk 0:00:12]}  Rxb2 {[%clk 0:00:18]} 31. Bc6 {[%clk 0:00:08]}  Nxf2 {[%clk 0:00:02]} 32. Bxe8 {[%clk 0:00:08]}  Nxh1+ {[%clk 0:00:01]} 33. Kxh1 {[%clk 0:00:09]}  Rc2 {[%clk 0:00:01]} 34. Rd3 {[%clk 0:00:09]}  Kf8 {[%clk 0:00:02]} 35. Ba4 {[%clk 0:00:09]}  Ra2 {[%clk 0:00:01]} 36. Bb3 {[%clk 0:00:08]}  Rb2 {[%clk 0:00:02]} 37. c4 {[%clk 0:00:09]}  Ke7 {[%clk 0:00:03]} 38. c5 {[%clk 0:00:09]}  Rb1+ {[%clk 0:00:03]} 39. Kg2 {[%clk 0:00:09]}  Rc1 {[%clk 0:00:04]} 40. Rd2 {[%clk 0:00:03]}  Rxc5 {[%clk 0:00:04]} 41. Rc2 {[%clk 0:00:03]}  Re5 {[%clk 0:00:03]} 42. Bc4 {[%clk 0:00:03]}  Rc5 {[%clk 0:00:03]} 43. Be2 {[%clk 0:00:04]}  Ra5 {[%clk 0:00:04]} 44. Bf3 {[%clk 0:00:04]}  Ra7 {[%clk 0:00:03]} 45. Rb2 {[%clk 0:00:04]}  Rc7 {[%clk 0:00:03]} 46. Rb7 {[%clk 0:00:04]}  Rxb7 {[%clk 0:00:04]} 47. Bxb7 {[%clk 0:00:05]}  f5 {[%clk 0:00:04]} 48. Kf3 {[%clk 0:00:05]}  Kf6 {[%clk 0:00:05]} 49. Ke3 {[%clk 0:00:05]}  g5 {[%clk 0:00:05]} 50. Bc8 {[%clk 0:00:05]}  g4 {[%clk 0:00:05]} 51. Kd4 {[%clk 0:00:04]}  g5 {[%clk 0:00:04]} 52. Ke3 {[%clk 0:00:05]}  e5 {[%clk 0:00:03]} 53. Kf2 {[%clk 0:00:04]}  e4 {[%clk 0:00:03]} 54. Ke3 {[%clk 0:00:04]}  Ke5 {[%clk 0:00:04]} 55. Kf2 {[%clk 0:00:05]}  Kf6 {[%clk 0:00:03]} 56. Ke3 {[%clk 0:00:05]}  Kg6 {[%clk 0:00:03]} 57. Kf2 {[%clk 0:00:05]}  Kf6 {[%clk 0:00:04]} 1/2-1/2


[Site "https://www.chess.com"]

[Event "Titled Tuesday Blitz November 08 Early 2022"]
[White "Baskakov, Egor"]
[Black "Firat, Burak"]
[WhiteFideId "24197866"]
[BlackFideId "6305881"]
[WhiteElo "2809"]
[BlackElo "2633"]
[Result "1-0"]
[Round "09"]
[TimeControl "180+1"]
[Date "2022.11.09"]
[WhiteClock "0:00:47"]
[BlackClock "0:00:47"]

1. e4 {[%clk 0:03:00]}  c5 {[%clk 0:02:50]} 2. Nf3 {[%clk 0:03:00]}  e6 {[%clk 0:02:50]} 3. Be2 {[%clk 0:03:00]}  a6 {[%clk 0:02:49]} 4. c4 {[%clk 0:03:01]}  b6 {[%clk 0:02:48]} 5. Nc3 {[%clk 0:03:01]}  Bb7 {[%clk 0:02:48]} 6. d4 {[%clk 0:03:01]}  cxd4 {[%clk 0:02:49]} 7. Nxd4 {[%clk 0:03:02]}  d6 {[%clk 0:02:49]} 8. O-O {[%clk 0:03:01]}  Nd7 {[%clk 0:02:50]} 9. f4 {[%clk 0:03:00]}  Ngf6 {[%clk 0:02:49]} 10. Bf3 {[%clk 0:03:01]}  Qc7 {[%clk 0:02:48]} 11. Be3 {[%clk 0:02:51]}  Be7 {[%clk 0:02:48]} 12. Rc1 {[%clk 0:02:51]}  O-O {[%clk 0:02:48]} 13. Bf2 {[%clk 0:02:51]}  Rac8 {[%clk 0:02:48]} 14. b3 {[%clk 0:02:48]}  Qb8 {[%clk 0:02:48]} 15. Qe2 {[%clk 0:02:47]}  Rfe8 {[%clk 0:02:47]} 16. e5 {[%clk 0:02:33]}  Bxf3 {[%clk 0:02:46]} 17. Nxf3 {[%clk 0:02:34]}  Nh5 {[%clk 0:02:46]} 18. g3 {[%clk 0:02:31]}  dxe5 {[%clk 0:02:40]} 19. Nxe5 {[%clk 0:02:28]}  Nhf6 {[%clk 0:02:40]} 20. Rfd1 {[%clk 0:02:24]}  Qc7 {[%clk 0:02:34]} 21. Nxd7 {[%clk 0:02:08]}  Nxd7 {[%clk 0:02:35]} 22. Ne4 {[%clk 0:02:08]}  Nf6 {[%clk 0:02:31]} 23. Nxf6+ {[%clk 0:02:03]}  Bxf6 {[%clk 0:02:32]} 24. Qe3 {[%clk 0:02:03]}  Rb8 {[%clk 0:02:28]} 25. Rc2 {[%clk 0:01:55]}  e5 {[%clk 0:02:25]} 26. f5 {[%clk 0:01:55]}  e4 {[%clk 0:02:26]} 27. Rcd2 {[%clk 0:01:54]}  Re7 {[%clk 0:02:15]} 28. Rd5 {[%clk 0:01:51]}  h6 {[%clk 0:02:14]} 29. h4 {[%clk 0:01:49]}  b5 {[%clk 0:02:03]} 30. c5 {[%clk 0:01:47]}  b4 {[%clk 0:02:03]} 31. g4 {[%clk 0:01:33]}  Qa5 {[%clk 0:02:03]} 32. g5 {[%clk 0:01:31]}  hxg5 {[%clk 0:01:55]} 33. hxg5 {[%clk 0:01:32]}  Bc3 {[%clk 0:01:55]} 34. g6 {[%clk 0:01:28]}  fxg6 {[%clk 0:01:40]} 35. fxg6 {[%clk 0:01:29]}  Re6 {[%clk 0:01:31]} 36. Qg5 {[%clk 0:01:04]}  Qxa2 {[%clk 0:01:06]} 37. Qh5 {[%clk 0:00:57]}  e3 {[%clk 0:00:50]} 38. Qh7+ {[%clk 0:00:46]}  Kf8 {[%clk 0:00:50]} 39. Qh8+ {[%clk 0:00:47]}  Ke7 {[%clk 0:00:50]} 40. Bh4+ {[%clk 0:00:47]}  Rf6 {[%clk 0:00:46]} 41. Qxg7+ {[%clk 0:00:47]}  Ke6 {[%clk 0:00:47]} 42. Qd7# {[%clk 0:00:47]} 1-0


[Site "https://www.chess.com"]

[Event "Titled Tuesday Blitz November 08 Early 2022"]
[White "Begunov, Konstantin"]
[Black "Nurmanova, Alua"]
[WhiteFideId "4118510"]
[BlackFideId "13729390"]
[WhiteElo "2140"]
[BlackElo "2120"]
[Result "0-1"]
[Round "09"]
[TimeControl "180+1"]
[Date "2022.11.09"]
[WhiteClock "0:00:08"]
[BlackClock "0:01:03"]

1. d4 {[%clk 0:03:00]}  Nf6 {[%clk 0:02:59]} 2. c4 {[%clk 0:03:01]}  g6 {[%clk 0:02:58]} 3. f3 {[%clk 0:03:00]}  Bg7 {[%clk 0:02:54]} 4. e4 {[%clk 0:03:01]}  d6 {[%clk 0:02:54]} 5. Nc3 {[%clk 0:03:01]}  O-O {[%clk 0:02:54]} 6. Be3 {[%clk 0:03:02]}  Nbd7 {[%clk 0:02:52]} 7. Nh3 {[%clk 0:03:01]}  a6 {[%clk 0:02:50]} 8. Qd2 {[%clk 0:02:59]}  c5 {[%clk 0:02:50]} 9. d5 {[%clk 0:02:58]}  b5 {[%clk 0:02:50]} 10. cxb5 {[%clk 0:02:58]}  Qa5 {[%clk 0:02:50]} 11. a4 {[%clk 0:02:45]}  Nb6 {[%clk 0:02:44]} 12. Nf2 {[%clk 0:02:40]}  axb5 {[%clk 0:02:35]} 13. Nxb5 {[%clk 0:02:33]}  Qxd2+ {[%clk 0:02:30]} 14. Kxd2 {[%clk 0:02:15]}  Rxa4 {[%clk 0:02:29]} 15. Bd3 {[%clk 0:01:57]}  Rxa1 {[%clk 0:02:10]} 16. Rxa1 {[%clk 0:01:58]}  Nfd7 {[%clk 0:02:10]} 17. Kc2 {[%clk 0:01:40]}  Bb7 {[%clk 0:02:06]} 18. Ra7 {[%clk 0:01:36]}  Rb8 {[%clk 0:01:56]} 19. b3 {[%clk 0:01:31]}  Nc8 {[%clk 0:01:51]} 20. Ra5 {[%clk 0:01:23]}  e6 {[%clk 0:01:48]} 21. Bc4 {[%clk 0:01:02]}  exd5 {[%clk 0:01:38]} 22. exd5 {[%clk 0:01:02]}  Ndb6 {[%clk 0:01:34]} 23. Nc7 {[%clk 0:00:52]}  Bf6 {[%clk 0:01:25]} 24. Bf4 {[%clk 0:00:50]}  Bd8 {[%clk 0:01:19]} 25. Na6 {[%clk 0:00:16]}  Ra8 {[%clk 0:01:05]} 26. Bd2 {[%clk 0:00:11]}  Nxc4 {[%clk 0:01:03]} 27. bxc4 {[%clk 0:00:08]}  Bxa5 {[%clk 0:01:03]} 0-1


[Site "https://www.chess.com"]

[Event "Titled Tuesday Blitz November 08 Early 2022"]
[White "Belozerov, Andrei"]
[Black "Jumabayev, Rinat"]
[WhiteFideId "4120213"]
[BlackFideId "13702661"]
[WhiteElo "2652"]
[BlackElo "2836"]
[Result "1-0"]
[Round "09"]
[TimeControl "180+1"]
[Date "2022.11.09"]
[WhiteClock "0:00:03"]
[BlackClock "0:00:02"]

1. e4 {[%clk 0:03:00]}  c5 {[%clk 0:02:59]} 2. Nc3 {[%clk 0:03:00]}  d6 {[%clk 0:02:59]} 3. d4 {[%clk 0:03:00]}  cxd4 {[%clk 0:03:00]} 4. Qxd4 {[%clk 0:03:01]}  a6 {[%clk 0:02:55]} 5. b3 {[%clk 0:02:59]}  Nc6 {[%clk 0:02:56]} 6. Qd2 {[%clk 0:03:00]}  e5 {[%clk 0:02:47]} 7. Bb2 {[%clk 0:02:59]}  Be6 {[%clk 0:02:46]} 8. O-O-O {[%clk 0:02:59]}  Rc8 {[%clk 0:02:38]} 9. Kb1 {[%clk 0:02:58]}  Nf6 {[%clk 0:02:34]} 10. g3 {[%clk 0:02:45]}  Be7 {[%clk 0:02:21]} 11. f4 {[%clk 0:02:44]}  b5 {[%clk 0:02:21]} 12. Bg2 {[%clk 0:02:35]}  Qb6 {[%clk 0:02:15]} 13. Nd5 {[%clk 0:02:24]}  Qb8 {[%clk 0:01:33]} 14. Nxe7 {[%clk 0:01:49]}  Kxe7 {[%clk 0:01:33]} 15. f5 {[%clk 0:01:49]}  Bd7 {[%clk 0:01:33]} 16. Ne2 {[%clk 0:01:40]}  b4 {[%clk 0:01:30]} 17. Bf3 {[%clk 0:01:11]}  h6 {[%clk 0:01:19]} 18. g4 {[%clk 0:01:09]}  Ne8 {[%clk 0:01:06]} 19. h4 {[%clk 0:01:01]}  a5 {[%clk 0:01:05]} 20. g5 {[%clk 0:00:56]}  a4 {[%clk 0:01:04]} 21. Ng3 {[%clk 0:00:46]}  Qb5 {[%clk 0:00:53]} 22. Be2 {[%clk 0:00:41]}  Qc5 {[%clk 0:00:53]} 23. Bc4 {[%clk 0:00:39]}  f6 {[%clk 0:00:36]} 24. Nh5 {[%clk 0:00:34]}  axb3 {[%clk 0:00:27]} 25. cxb3 {[%clk 0:00:27]}  hxg5 {[%clk 0:00:28]} 26. hxg5 {[%clk 0:00:25]}  Nd4 {[%clk 0:00:27]} 27. Nxg7 {[%clk 0:00:19]}  Rxh1 {[%clk 0:00:25]} 28. Rxh1 {[%clk 0:00:18]}  Bc6 {[%clk 0:00:25]} 29. Nxe8 {[%clk 0:00:16]}  Bxe4+ {[%clk 0:00:25]} 30. Kc1 {[%clk 0:00:07]}  Bxh1 {[%clk 0:00:21]} 31. gxf6+ {[%clk 0:00:05]}  Kxe8 {[%clk 0:00:20]} 32. f7+ {[%clk 0:00:04]}  Kd7 {[%clk 0:00:19]} 33. Bxd4 {[%clk 0:00:04]}  exd4 {[%clk 0:00:18]} 34. Qh6 {[%clk 0:00:04]}  Qxf5 {[%clk 0:00:14]} 35. Qxh1 {[%clk 0:00:02]}  Qf4+ {[%clk 0:00:14]} 36. Kb1 {[%clk 0:00:02]}  Qf5+ {[%clk 0:00:13]} 37. Kb2 {[%clk 0:00:02]}  d5 {[%clk 0:00:13]} 38. Qxd5+ {[%clk 0:00:01]}  Qxd5 {[%clk 0:00:14]} 39. Bxd5 {[%clk 0:00:02]}  Kd6 {[%clk 0:00:13]} 40. Bc4 {[%clk 0:00:03]}  Rh8 {[%clk 0:00:13]} 41. Kc2 {[%clk 0:00:03]}  Ke5 {[%clk 0:00:14]} 42. Kd3 {[%clk 0:00:03]}  Rh3+ {[%clk 0:00:14]} 43. Kd2 {[%clk 0:00:03]}  Rf3 {[%clk 0:00:14]} 44. Ke2 {[%clk 0:00:03]}  Rf6 {[%clk 0:00:13]} 45. Kd3 {[%clk 0:00:03]}  Rf4 {[%clk 0:00:14]} 46. Kd2 {[%clk 0:00:03]}  Ke4 {[%clk 0:00:14]} 47. Bd3+ {[%clk 0:00:03]}  Kd5 {[%clk 0:00:14]} 48. Bc4+ {[%clk 0:00:03]}  Kc5 {[%clk 0:00:14]} 49. Kd3 {[%clk 0:00:04]}  Kd6 {[%clk 0:00:15]} 50. Kd2 {[%clk 0:00:04]}  Kc6 {[%clk 0:00:12]} 51. Kd3 {[%clk 0:00:04]}  Kc5 {[%clk 0:00:12]} 52. Kd2 {[%clk 0:00:05]}  Rf2+ {[%clk 0:00:12]} 53. Kd3 {[%clk 0:00:05]}  Rf4 {[%clk 0:00:13]} 54. Kd2 {[%clk 0:00:06]}  Kd6 {[%clk 0:00:13]} 55. Kd3 {[%clk 0:00:06]}  Ke7 {[%clk 0:00:13]} 56. Kd2 {[%clk 0:00:06]}  Rf3 {[%clk 0:00:14]} 57. Ke2 {[%clk 0:00:05]}  Re3+ {[%clk 0:00:13]} 58. Kd2 {[%clk 0:00:05]}  Rc3 {[%clk 0:00:12]} 59. Ke2 {[%clk 0:00:04]}  Re3+ {[%clk 0:00:10]} 60. Kd2 {[%clk 0:00:04]}  Kf8 {[%clk 0:00:10]} 61. Kc2 {[%clk 0:00:03]}  Kg7 {[%clk 0:00:09]} 62. Kd2 {[%clk 0:00:04]}  Rc3 {[%clk 0:00:07]} 63. Ke2 {[%clk 0:00:03]}  Rg3 {[%clk 0:00:08]} 64. Kd2 {[%clk 0:00:04]}  Re3 {[%clk 0:00:08]} 65. Kc2 {[%clk 0:00:04]}  Kf8 {[%clk 0:00:08]} 66. Kd2 {[%clk 0:00:05]}  Ke7 {[%clk 0:00:09]} 67. Kc2 {[%clk 0:00:05]}  Rh3 {[%clk 0:00:07]} 68. Kd2 {[%clk 0:00:05]}  Rh2+ {[%clk 0:00:07]} 69. Kd3 {[%clk 0:00:06]}  Rxa2 {[%clk 0:00:07]} 70. Kxd4 {[%clk 0:00:06]}  Ra5 {[%clk 0:00:08]} 71. Bd5 {[%clk 0:00:05]}  Ra7 {[%clk 0:00:06]} 72. Kc5 {[%clk 0:00:04]}  Rd7 {[%clk 0:00:04]} 73. Bc4 {[%clk 0:00:03]}  Rb7 {[%clk 0:00:05]} 74. Kc6 {[%clk 0:00:03]}  Rb8 {[%clk 0:00:05]} 75. Kc7 {[%clk 0:00:03]}  Rh8 {[%clk 0:00:06]} 76. Kb6 {[%clk 0:00:03]}  Rh5 {[%clk 0:00:06]} 77. Kc6 {[%clk 0:00:03]}  Re5 {[%clk 0:00:06]} 78. Bd5 {[%clk 0:00:03]}  Rg5 {[%clk 0:00:06]} 79. Bc4 {[%clk 0:00:02]}  Re5 {[%clk 0:00:06]} 80. Kb6 {[%clk 0:00:02]}  Rf5 {[%clk 0:00:05]} 81. Kc6 {[%clk 0:00:03]}  Rg5 {[%clk 0:00:04]} 82. Kb6 {[%clk 0:00:03]}  Re5 {[%clk 0:00:04]} 83. Kc6 {[%clk 0:00:04]}  Rf5 {[%clk 0:00:04]} 84. Kb6 {[%clk 0:00:04]}  Kd7 {[%clk 0:00:05]} 85. Ka6 {[%clk 0:00:04]}  Kc6 {[%clk 0:00:05]} 86. Bb5+ {[%clk 0:00:03]}  Kc5 {[%clk 0:00:03]} 87. Bc4 {[%clk 0:00:03]}  Rf4 {[%clk 0:00:01]} 88. Kb7 {[%clk 0:00:03]}  Kd6 {[%clk 0:00:02]} 89. Kb6 {[%clk 0:00:03]} 1-0


[Site "https://www.chess.com"]

[Event "Titled Tuesday Blitz November 08 Early 2022"]
[White "Besedes, Danilo"]
[Black "Stribuk, Artiom"]
[WhiteFideId "946796"]
[BlackFideId "13515659"]
[WhiteElo "2632"]
[BlackElo "2804"]
[Result "0-1"]
[Round "09"]
[TimeControl "180+1"]
[Date "2022.11.09"]
[WhiteClock "0:00:02"]
[BlackClock "0:00:05"]

1. Nf3 {[%clk 0:03:00]}  c5 {[%clk 0:02:57]} 2. e3 {[%clk 0:02:55]}  g6 {[%clk 0:02:48]} 3. d4 {[%clk 0:02:54]}  cxd4 {[%clk 0:02:46]} 4. exd4 {[%clk 0:02:53]}  Bg7 {[%clk 0:02:46]} 5. Be2 {[%clk 0:02:53]}  Nf6 {[%clk 0:02:46]} 6. O-O {[%clk 0:02:47]}  O-O {[%clk 0:02:47]} 7. c3 {[%clk 0:02:47]}  b6 {[%clk 0:02:37]} 8. a4 {[%clk 0:02:44]}  a6 {[%clk 0:02:36]} 9. Bf4 {[%clk 0:02:43]}  Bb7 {[%clk 0:02:35]} 10. Re1 {[%clk 0:02:43]}  d6 {[%clk 0:02:35]} 11. Nbd2 {[%clk 0:02:37]}  Nbd7 {[%clk 0:02:35]} 12. Bc4 {[%clk 0:02:28]}  h6 {[%clk 0:02:03]} 13. Qb3 {[%clk 0:02:21]}  Nh5 {[%clk 0:02:00]} 14. Bg3 {[%clk 0:02:18]}  Nxg3 {[%clk 0:01:59]} 15. hxg3 {[%clk 0:02:19]}  e6 {[%clk 0:01:53]} 16. Rad1 {[%clk 0:02:16]}  Bxf3 {[%clk 0:01:52]} 17. Nxf3 {[%clk 0:02:15]}  d5 {[%clk 0:01:53]} 18. Bd3 {[%clk 0:02:13]}  h5 {[%clk 0:01:50]} 19. Be2 {[%clk 0:01:56]}  Bf6 {[%clk 0:01:48]} 20. Qc2 {[%clk 0:01:45]}  Kg7 {[%clk 0:01:45]} 21. Bd3 {[%clk 0:01:44]}  Qb8 {[%clk 0:01:27]} 22. Qe2 {[%clk 0:01:43]}  Qb7 {[%clk 0:01:24]} 23. Nh4 {[%clk 0:01:33]}  Rfb8 {[%clk 0:01:08]} 24. Nf3 {[%clk 0:01:21]}  b5 {[%clk 0:01:06]} 25. axb5 {[%clk 0:01:21]}  axb5 {[%clk 0:01:07]} 26. Ra1 {[%clk 0:01:21]}  b4 {[%clk 0:01:07]} 27. c4 {[%clk 0:01:21]}  dxc4 {[%clk 0:01:03]} 28. Be4 {[%clk 0:01:19]}  Rxa1 {[%clk 0:00:56]} 29. Bxb7 {[%clk 0:01:18]}  Rxe1+ {[%clk 0:00:56]} 30. Nxe1 {[%clk 0:01:18]}  Rxb7 {[%clk 0:00:56]} 31. Qxc4 {[%clk 0:01:18]}  Ra7 {[%clk 0:00:46]} 32. Qxb4 {[%clk 0:01:07]}  Ra1 {[%clk 0:00:41]} 33. Kf1 {[%clk 0:01:06]}  Rd1 {[%clk 0:00:41]} 34. Ke2 {[%clk 0:01:03]}  Rxd4 {[%clk 0:00:40]} 35. Qb5 {[%clk 0:01:00]}  Rd5 {[%clk 0:00:40]} 36. Qb3 {[%clk 0:00:51]}  Nc5 {[%clk 0:00:41]} 37. Qc2 {[%clk 0:00:46]}  Re5+ {[%clk 0:00:22]} 38. Kf1 {[%clk 0:00:46]}  Rd5 {[%clk 0:00:18]} 39. Nf3 {[%clk 0:00:43]}  Nd3 {[%clk 0:00:17]} 40. b3 {[%clk 0:00:40]}  Nb4 {[%clk 0:00:14]} 41. Qc4 {[%clk 0:00:38]}  Be7 {[%clk 0:00:09]} 42. Ke2 {[%clk 0:00:36]}  Ra5 {[%clk 0:00:09]} 43. Ne5 {[%clk 0:00:31]}  Ra2+ {[%clk 0:00:08]} 44. Kf3 {[%clk 0:00:31]}  Nd5 {[%clk 0:00:07]} 45. Nd7 {[%clk 0:00:28]}  Bf6 {[%clk 0:00:04]} 46. Nxf6 {[%clk 0:00:24]}  Kxf6 {[%clk 0:00:04]} 47. Qd4+ {[%clk 0:00:23]}  Ke7 {[%clk 0:00:04]} 48. g4 {[%clk 0:00:23]}  hxg4+ {[%clk 0:00:04]} 49. Kxg4 {[%clk 0:00:24]}  Ra6 {[%clk 0:00:03]} 50. Qc5+ {[%clk 0:00:23]}  Kf6 {[%clk 0:00:03]} 51. Kg3 {[%clk 0:00:23]}  Rb6 {[%clk 0:00:03]} 52. Qd4+ {[%clk 0:00:21]}  Ke7 {[%clk 0:00:03]} 53. Qc4 {[%clk 0:00:20]}  Rb4 {[%clk 0:00:03]} 54. Qc5+ {[%clk 0:00:19]}  Kf6 {[%clk 0:00:04]} 55. Qc2 {[%clk 0:00:18]}  Kg7 {[%clk 0:00:04]} 56. f3 {[%clk 0:00:18]}  g5 {[%clk 0:00:04]} 57. Kf2 {[%clk 0:00:18]}  Kg8 {[%clk 0:00:03]} 58. Ke1 {[%clk 0:00:16]}  Kg7 {[%clk 0:00:03]} 59. Kd2 {[%clk 0:00:16]}  Kf6 {[%clk 0:00:04]} 60. Kc1 {[%clk 0:00:17]}  Ke7 {[%clk 0:00:03]} 61. Kb2 {[%clk 0:00:17]}  Kf6 {[%clk 0:00:03]} 62. Qd2 {[%clk 0:00:17]}  Kg6 {[%clk 0:00:03]} 63. Qd3+ {[%clk 0:00:16]}  Kg7 {[%clk 0:00:03]} 64. g3 {[%clk 0:00:17]}  Kf6 {[%clk 0:00:03]} 65. Qd2 {[%clk 0:00:17]}  Kg6 {[%clk 0:00:03]} 66. Qe2 {[%clk 0:00:16]}  Rb6 {[%clk 0:00:03]} 67. Qe5 {[%clk 0:00:16]}  Rb4 {[%clk 0:00:02]} 68. Kc2 {[%clk 0:00:14]}  Rb6 {[%clk 0:00:03]} 69. f4 {[%clk 0:00:13]}  gxf4 {[%clk 0:00:03]} 70. gxf4 {[%clk 0:00:13]}  f5 {[%clk 0:00:02]} 71. Kb2 {[%clk 0:00:12]}  Kf7 {[%clk 0:00:02]} 72. Qd4 {[%clk 0:00:10]}  Rb4 {[%clk 0:00:02]} 73. Qe5 {[%clk 0:00:09]}  Rxf4 {[%clk 0:00:03]} 74. Qd6 {[%clk 0:00:09]}  Re4 {[%clk 0:00:04]} 75. Kc2 {[%clk 0:00:09]}  Kf6 {[%clk 0:00:04]} 76. Kd3 {[%clk 0:00:09]}  Rb4 {[%clk 0:00:04]} 77. Kc2 {[%clk 0:00:08]}  f4 {[%clk 0:00:05]} 78. Qf8+ {[%clk 0:00:07]}  Ke5 {[%clk 0:00:05]} 79. Qg7+ {[%clk 0:00:07]}  Ke4 {[%clk 0:00:06]} 80. Qg6+ {[%clk 0:00:07]}  Ke5 {[%clk 0:00:07]} 81. Qg5+ {[%clk 0:00:07]}  Kd6 {[%clk 0:00:07]} 82. Qd8+ {[%clk 0:00:07]}  Ke5 {[%clk 0:00:07]} 83. Qh8+ {[%clk 0:00:07]}  Ke4 {[%clk 0:00:07]} 84. Qh7+ {[%clk 0:00:07]}  Ke3 {[%clk 0:00:07]} 85. Qh3+ {[%clk 0:00:06]}  Kd4 {[%clk 0:00:06]} 86. Qxe6 {[%clk 0:00:06]}  Rb6 {[%clk 0:00:05]} 87. Qe8 {[%clk 0:00:05]}  Rc6+ {[%clk 0:00:05]} 88. Kd2 {[%clk 0:00:03]}  Rh6 {[%clk 0:00:04]} 89. Qb8 {[%clk 0:00:02]}  Rh2+ {[%clk 0:00:04]} 90. Ke1 {[%clk 0:00:03]}  Rh1+ {[%clk 0:00:04]} 91. Kf2 {[%clk 0:00:02]}  Rh2+ {[%clk 0:00:04]} 92. Kg1 {[%clk 0:00:03]}  Rb2 {[%clk 0:00:04]} 93. Qa7+ {[%clk 0:00:03]}  Kd3 {[%clk 0:00:04]} 94. Qa6+ {[%clk 0:00:03]}  Ke4 {[%clk 0:00:03]} 95. Qc4+ {[%clk 0:00:03]}  Ke5 {[%clk 0:00:04]} 96. Kf1 {[%clk 0:00:02]}  Ne3+ {[%clk 0:00:04]} 97. Ke1 {[%clk 0:00:02]}  Nxc4 {[%clk 0:00:05]} 0-1


[Site "https://www.chess.com"]

[Event "Titled Tuesday Blitz November 08 Early 2022"]
[White "Bibilashvili, Lali"]
[Black "Luxama, Jacques Muller"]
[WhiteFideId "13604236"]
[BlackFideId "11900113"]
[WhiteElo "1819"]
[BlackElo "1931"]
[Result "0-1"]
[Round "09"]
[TimeControl "180+1"]
[Date "2022.11.09"]
[WhiteClock "0:00:12"]
[BlackClock "0:00:28"]

1. c4 {[%clk 0:03:00]}  Nf6 {[%clk 0:02:59]} 2. g3 {[%clk 0:03:00]}  g6 {[%clk 0:02:58]} 3. Bg2 {[%clk 0:03:00]}  Bg7 {[%clk 0:02:58]} 4. e3 {[%clk 0:02:59]}  O-O {[%clk 0:02:59]} 5. Ne2 {[%clk 0:02:59]}  c6 {[%clk 0:02:59]} 6. O-O {[%clk 0:02:56]}  d5 {[%clk 0:02:59]} 7. cxd5 {[%clk 0:02:56]}  cxd5 {[%clk 0:02:59]} 8. d3 {[%clk 0:02:53]}  Nc6 {[%clk 0:02:59]} 9. Nbc3 {[%clk 0:02:52]}  Bf5 {[%clk 0:02:57]} 10. a3 {[%clk 0:02:51]}  Qd7 {[%clk 0:02:54]} 11. Nf4 {[%clk 0:02:49]}  d4 {[%clk 0:02:50]} 12. Ncd5 {[%clk 0:02:32]}  Nxd5 {[%clk 0:02:44]} 13. Nxd5 {[%clk 0:02:16]}  dxe3 {[%clk 0:02:41]} 14. fxe3 {[%clk 0:02:14]}  Bh3 {[%clk 0:02:39]} 15. Nf4 {[%clk 0:02:09]}  Bxg2 {[%clk 0:02:38]} 16. Kxg2 {[%clk 0:02:08]}  e5 {[%clk 0:02:37]} 17. Ne2 {[%clk 0:02:04]}  Rad8 {[%clk 0:02:35]} 18. d4 {[%clk 0:01:51]}  exd4 {[%clk 0:02:35]} 19. e4 {[%clk 0:01:51]}  d3 {[%clk 0:02:32]} 20. Nc3 {[%clk 0:01:51]}  d2 {[%clk 0:02:29]} 21. Qb3 {[%clk 0:01:36]}  dxc1=Q {[%clk 0:02:28]} 22. Raxc1 {[%clk 0:01:33]}  Nd4 {[%clk 0:02:18]} 23. Qc4 {[%clk 0:01:29]}  Rc8 {[%clk 0:02:15]} 24. Qb4 {[%clk 0:01:28]}  b6 {[%clk 0:02:02]} 25. Rcd1 {[%clk 0:01:25]}  Rcd8 {[%clk 0:01:43]} 26. Nd5 {[%clk 0:01:23]}  Nc6 {[%clk 0:01:30]} 27. Qb3 {[%clk 0:01:21]}  Qe6 {[%clk 0:01:27]} 28. Qf3 {[%clk 0:01:12]}  Rfe8 {[%clk 0:01:23]} 29. Rfe1 {[%clk 0:01:10]}  Ne5 {[%clk 0:01:17]} 30. Qf4 {[%clk 0:00:51]}  Rc8 {[%clk 0:01:03]} 31. Rd2 {[%clk 0:00:36]}  h6 {[%clk 0:01:01]} 32. h4 {[%clk 0:00:35]}  Nc4 {[%clk 0:01:00]} 33. Rf2 {[%clk 0:00:33]}  Ne5 {[%clk 0:00:56]} 34. Qe3 {[%clk 0:00:20]}  Rc4 {[%clk 0:00:52]} 35. Qb3 {[%clk 0:00:18]}  Qc6 {[%clk 0:00:47]} 36. Rf4 {[%clk 0:00:17]}  g5 {[%clk 0:00:46]} 37. hxg5 {[%clk 0:00:17]}  hxg5 {[%clk 0:00:46]} 38. Rf5 {[%clk 0:00:18]}  g4 {[%clk 0:00:38]} 39. Nc3 {[%clk 0:00:17]}  Nf3 {[%clk 0:00:34]} 40. Rh1 {[%clk 0:00:17]}  Bxc3 {[%clk 0:00:31]} 41. bxc3 {[%clk 0:00:16]}  Qxe4 {[%clk 0:00:30]} 42. Qb1 {[%clk 0:00:12]}  Qe2# {[%clk 0:00:28]} 0-1


[Site "https://www.chess.com"]